fUST/lending_fUST_20250409
["ID","MTS","AMOUNT","RATE_DAILY","PERIOD"]
[357575148,1744189846800,-569.27387828,0.00019178,2]
[357575149,1744189846809,-500.0,0.00019178,2]
[357575150,1744189846819,-915.32,0.00019178,2]
[357575151,1744189846829,-500.0,0.00019178,2]
[357575152,1744189846838,-500.0,0.00019178,2]
[357575153,1744189846848,-500.0,0.00019178,2]
[357575154,1744189846857,-500.0,0.00019178,2]
[357575155,1744189846866,-500.0,0.00019178,2]
[357575156,1744189846876,-500.0,0.00019178,2]
[357575157,1744189846886,-500.0,0.00019178,2]
[357575158,1744189846895,-500.0,0.00019178,2]
[357575159,1744189846905,-500.0,0.00019178,2]
[357575160,1744189846915,-500.0,0.00019178,2]
[357575161,1744189846924,-911.09,0.00019178,2]
[357575162,1744189846933,-500.0,0.00019178,2]
[357575163,1744189846942,-1656.0,0.00019178,2]
[357575164,1744189846951,-500.0,0.00019178,2]
[357575165,1744189846961,-916.11,0.00019178,2]
[357575166,1744189846970,-500.0,0.00019178,2]
[357575167,1744189846980,-500.0,0.00019178,2]
[357575168,1744189846989,-500.0,0.00019178,2]
[357575169,1744189846998,-402.43953646,0.00019178,2]
[357575170,1744189847008,-500.0,0.00019178,2]
[357575171,1744189847017,-500.0,0.00019178,2]
[357575172,1744189847027,-500.0,0.00019178,2]
[357575173,1744189847036,-515.57890936,0.00019178,2]
[357575174,1744189847047,-500.0,0.00019178,2]
[357575175,1744189847056,-3567.92,0.00019178,2]
[357575176,1744189847066,-500.0,0.00019178,2]
[357575177,1744189847077,-500.0,0.00019178,2]
[357575178,1744189847087,-500.0,0.00019178,2]
[357575179,1744189847097,-1308.57,0.00019178,2]
[357575180,1744189847106,-500.0,0.00019178,2]
[357575181,1744189847116,-500.0,0.00019178,2]
[357575182,1744189847132,-911.87,0.00019178,2]
[357575183,1744189847142,-500.0,0.00019178,2]
[357575184,1744189847153,-524.66940003,0.00019178,2]
[357575185,1744189847163,-500.0,0.00019178,2]
[357575186,1744189847173,-520.82465597,0.00019178,2]
[357575187,1744189847183,-604.83076778,0.00019178,2]
[357575188,1744189847194,-500.0,0.00019178,2]
[357575189,1744189847205,-500.0,0.00019178,2]
[357575190,1744189847215,-500.0,0.00019178,2]
[357575191,1744189847225,-500.0,0.00019178,2]
[357575192,1744189847234,-500.0,0.00019178,2]
[357575193,1744189847244,-500.0,0.00019178,2]
[357575194,1744189847253,-500.0,0.00019178,2]
[357575195,1744189847262,-178.077753,0.00019178,2]
[357575196,1744189847272,-500.0,0.00019178,2]
[357575197,1744189847281,-500.0,0.00019178,2]
[357575198,1744189847291,-500.0,0.00019178,2]
[357575199,1744189847302,-500.0,0.00019178,2]
[357575200,1744189847311,-500.0,0.00019178,2]
[357575201,1744189847321,-500.0,0.00019178,2]
[357575202,1744189847330,-151.0,0.00019178,2]
[357575203,1744189847340,-161.459995,0.00019178,2]
[357575204,1744189847349,-500.0,0.00019178,2]
[357575205,1744189847359,-500.0,0.00019178,2]
[357575206,1744189847368,-151.0,0.00019178,2]
[357575207,1744189847377,-151.0,0.00019178,2]
[357575208,1744189847387,-500.0,0.00019178,2]
[357575209,1744189847397,-151.0,0.00019178,2]
[357575210,1744189847407,-155.099457,0.00019178,2]
[357575211,1744189847417,-2393.79,0.00019178,2]
[357575212,1744189847427,-1396.26,0.00019178,2]
[357575213,1744189847437,-500.0,0.00019178,2]
[357575214,1744189847447,-500.0,0.00019178,2]
[357575215,1744189847457,-656.12,0.00019178,2]
[357575216,1744189847467,-500.0,0.00019178,2]
[357575217,1744189847477,-500.0,0.00019178,2]
[357575218,1744189847488,-2387.78,0.00019178,2]
[357575219,1744189847498,-500.0,0.00019178,2]
[357575220,1744189847508,-500.0,0.00019178,2]
[357575221,1744189847518,-892.89,0.00019178,2]
[357575222,1744189847528,-500.0,0.00019178,2]
[357575223,1744189847538,-500.0,0.00019178,2]
[357575224,1744189847548,-520.79021498,0.00019178,2]
[357575225,1744189847559,-500.0,0.00019178,2]
[357575226,1744189847569,-983.05,0.00019178,2]
[357575227,1744189847578,-159.318754,0.00019178,2]
[357575228,1744189847588,-500.0,0.00019178,2]
[357575229,1744189847598,-3016.86,0.00019178,2]
[357575230,1744189847607,-500.0,0.00019178,2]
[357575231,1744189847616,-500.0,0.00019178,2]
[357575232,1744189847626,-516.15264027,0.00019178,2]
[357575233,1744189847636,-938.74,0.00019178,2]
[357575234,1744189847646,-505.13544054,0.00019178,2]
[357575235,1744189847656,-500.0,0.00019178,2]
[357575236,1744189847666,-500.0,0.00019178,2]
[357575237,1744189847675,-500.0,0.00019178,2]
[357575238,1744189847686,-500.0,0.00019178,2]
[357575239,1744189847695,-528.13,0.00019178,2]
[357575240,1744189847705,-500.0,0.00019178,2]
[357575241,1744189847716,-1946.3,0.00019178,2]
[357575242,1744189847728,-500.0,0.00019178,2]
[357575243,1744189847738,-500.0,0.00019178,2]
[357575244,1744189847747,-1414.1,0.00019178,2]
[357575245,1744189847758,-500.0,0.00019178,2]
[357575246,1744189847767,-500.0,0.00019178,2]
[357575247,1744189847776,-156.498667,0.00019178,2]
[357575248,1744189847786,-500.0,0.00019178,2]
[357575249,1744189847797,-896.47,0.00019178,2]
[357575250,1744189847806,-500.0,0.00019178,2]
[357575251,1744189847815,-507.26562205,0.00019178,2]
[357575252,1744189847825,-500.0,0.00019178,2]
[357575253,1744189847834,-538.71580313,0.00019178,2]
[357575254,1744189847843,-151.0,0.00019178,2]
[357575255,1744189847853,-500.0,0.00019178,2]
[357575256,1744189847863,-151.0,0.00019178,2]
[357575257,1744189847872,-151.0,0.00019178,2]
[357575258,1744189847882,-542.44084476,0.00019178,2]
[357575259,1744189847891,-521.43420262,0.00019178,2]
[357575260,1744189847900,-500.0,0.00019178,2]
[357575261,1744189847910,-500.0,0.00019178,2]
[357575262,1744189847919,-500.0,0.00019178,2]
[357575263,1744189847929,-500.0,0.00019178,2]
[357575264,1744189847939,-500.0,0.00019178,2]
[357575265,1744189847949,-500.0,0.00019178,2]
[357575266,1744189847958,-500.0,0.00019178,2]
[357575267,1744189847968,-500.0,0.00019178,2]
[357575268,1744189847978,-500.0,0.00019178,2]
[357575269,1744189847988,-500.0,0.00019178,2]
[357575270,1744189848007,-500.0,0.00019178,2]
[357575271,1744189848019,-500.0,0.00019178,2]
[357575272,1744189848029,-500.0,0.00019178,2]
[357575273,1744189848039,-252.960365,0.00019178,2]
[357575274,1744189848052,-500.0,0.00019178,2]
[357575275,1744189848062,-500.0,0.00019178,2]
[357575276,1744189848073,-500.0,0.00019178,2]
[357575277,1744189848083,-500.0,0.00019178,2]
[357575278,1744189848094,-262.04480487,0.00019178,2]
[357575279,1744189848106,-151.0,0.00019178,2]
[357575280,1744189848116,-151.0,0.00019178,2]
[357575281,1744189848126,-151.0,0.00019178,2]
[357575282,1744189848137,-500.0,0.00019178,2]
[357575283,1744189848146,-500.0,0.00019178,2]
[357575284,1744189848157,-500.0,0.00019178,2]
[357575285,1744189848167,-500.0,0.00019178,2]
[357575286,1744189848176,-935.48,0.00019178,2]
[357575287,1744189848186,-1387.07,0.00019178,2]
[357575288,1744189848196,-500.0,0.00019178,2]
[357575289,1744189848209,-530.91722914,0.00019178,2]
[357575290,1744189848228,-500.0,0.00019178,2]
[357575291,1744189848238,-500.0,0.00019178,2]
[357575292,1744189848248,-500.0,0.00019178,2]
[357575293,1744189848258,-518.36526522,0.00019178,2]
[357575294,1744189848267,-532.62916805,0.00019178,2]
[357575295,1744189848277,-513.71850038,0.00019178,2]
[357575296,1744189848286,-500.0,0.00019178,2]
[357575297,1744189848296,-1564.17,0.00019178,2]
[357575298,1744189848306,-500.0,0.00019178,2]
[357575299,1744189848315,-500.0,0.00019178,2]
[357575300,1744189848326,-1221.98,0.00019178,2]
[357575301,1744189848336,-151.0,0.00019178,2]
[357575302,1744189848345,-151.0,0.00019178,2]
[357575303,1744189848355,-501.33252826,0.00019178,2]
[357575304,1744189848365,-1382.42,0.00019178,2]
[357575305,1744189848375,-151.0,0.00019178,2]
[357575306,1744189848385,-500.0,0.00019178,2]
[357575307,1744189848395,-261.532148,0.00019178,2]
[357575308,1744189848405,-500.0,0.00019178,2]
[357575309,1744189848415,-2128.11,0.00019178,2]
[357575310,1744189848425,-151.0,0.00019178,2]
[357575311,1744189848435,-151.0,0.00019178,2]
[357575312,1744189848445,-884.44,0.00019178,2]
[357575313,1744189848455,-151.0,0.00019178,2]
[357575314,1744189848466,-500.0,0.00019178,2]
[357575315,1744189848476,-151.0,0.00019178,2]
[357575316,1744189848486,-500.0,0.00019178,2]
[357575317,1744189848496,-501.17594522,0.00019178,2]
[357575318,1744189848506,-905.2,0.00019178,2]
[357575319,1744189848516,-811.6,0.00019178,2]
[357575320,1744189848527,-6028.02,0.00019178,2]
[357575321,1744189848537,-1852.54,0.00019178,2]
[357575322,1744189848548,-500.0,0.00019178,2]
[357575323,1744189848558,-500.0,0.00019178,2]
[357575324,1744189848569,-500.0,0.00019178,2]
[357575325,1744189848580,-511.63080703,0.00019178,2]
[357575326,1744189848590,-500.0,0.00019178,2]
[357575327,1744189848600,-500.0,0.00019178,2]
[357575328,1744189848610,-500.0,0.00019178,2]
[357575329,1744189848620,-500.0,0.00019178,2]
[357575330,1744189848631,-500.0,0.00019178,2]
[357575331,1744189848641,-809.98,0.00019178,2]
[357575332,1744189848651,-500.0,0.00019178,2]
[357575333,1744189848661,-500.0,0.00019178,2]
[357575334,1744189848672,-1615.19,0.00019178,2]
[357575335,1744189848682,-500.0,0.00019178,2]
[357575336,1744189848692,-500.0,0.00019178,2]
[357575337,1744189848702,-500.0,0.00019178,2]
[357575338,1744189848713,-166.183183,0.00019178,2]
[357575339,1744189848725,-500.0,0.00019178,2]
[357575340,1744189848736,-1173.05,0.00019178,2]
[357575341,1744189848746,-500.0,0.00019178,2]
[357575342,1744189848757,-190.05670616,0.00019178,2]
[357575343,1744189848767,-1036.61,0.00019178,2]
[357575344,1744189848777,-500.0,0.00019178,2]
[357575345,1744189848787,-1090.49,0.00019178,2]
[357575346,1744189848798,-500.0,0.00019178,2]
[357575347,1744189848810,-539.41,0.00019178,2]
[357575348,1744189848821,-151.0,0.00019178,2]
[357575349,1744189848831,-186.962367,0.00019178,2]
[357575350,1744189848841,-500.0,0.00019178,2]
[357575351,1744189848851,-500.0,0.00019178,2]
[357575352,1744189848860,-151.0,0.00019178,2]
[357575353,1744189848870,-355.65064596,0.00019178,2]
[357575354,1744189848880,-151.0,0.00019178,2]
[357575355,1744189848890,-151.0,0.00019178,2]
[357575356,1744189848900,-151.0,0.00019178,2]
[357575357,1744189848909,-500.0,0.00019178,2]
[357575358,1744189848919,-500.0,0.00019178,2]
[357575359,1744189848928,-500.0,0.00019178,2]
[357575360,1744189849066,-500.0,0.00019178,2]
[357575361,1744189849075,-1709.97,0.00019178,2]
[357575362,1744189849085,-500.0,0.00019178,2]
[357575363,1744189849094,-500.0,0.00019178,2]
[357575364,1744189849105,-507.02282673,0.00019178,2]
[357575365,1744189849115,-1309.6,0.00019178,2]
[357575366,1744189849125,-504.86657182,0.00019178,2]
[357575367,1744189849135,-669.41,0.00019178,2]
[357575368,1744189849144,-508.48224173,0.00019178,2]
[357575369,1744189849153,-500.0,0.00019178,2]
[357575370,1744189849163,-500.0,0.00019178,2]
[357575371,1744189849172,-500.0,0.00019178,2]
[357575372,1744189849182,-946.52,0.00019178,2]
[357575373,1744189849191,-500.0,0.00019178,2]
[357575374,1744189849200,-306.19512418,0.00019178,2]
[357575375,1744189849210,-510.56027563,0.00019178,2]
[357575376,1744189849219,-500.0,0.00019178,2]
[357575377,1744189849228,-500.0,0.00019178,2]
[357575378,1744189849238,-507.75868489,0.00019178,2]
[357575379,1744189849248,-500.0,0.00019178,2]
[357575380,1744189849258,-500.0,0.00019178,2]
[357575381,1744189849268,-657.17,0.00019178,2]
[357575382,1744189849277,-510.42937559,0.00019178,2]
[357575383,1744189849286,-541.89,0.00019178,2]
[357575384,1744189849296,-500.0,0.00019178,2]
[357575385,1744189849306,-785.55,0.00019178,2]
[357575386,1744189849315,-511.506184,0.00019178,2]
[357575387,1744189849324,-500.0,0.00019178,2]
[357575388,1744189849333,-511.506184,0.00019178,2]
[357575389,1744189849343,-511.506184,0.00019178,2]
[357575390,1744189849352,-511.506184,0.00019178,2]
[357575391,1744189849362,-500.0,0.00019178,2]
[357575392,1744189849371,-500.0,0.00019178,2]
[357575393,1744189849383,-500.0,0.00019178,2]
[357575394,1744189849393,-500.0,0.00019178,2]
[357575395,1744189849402,-1430.95,0.00019178,2]
[357575396,1744189849411,-500.0,0.00019178,2]
[357575397,1744189849420,-511.506184,0.00019178,2]
[357575398,1744189849430,-511.506184,0.00019178,2]
[357575399,1744189849439,-511.506184,0.00019178,2]
[357575400,1744189849448,-156.388164,0.00019178,2]
[357575401,1744189849458,-511.506184,0.00019178,2]
[357575402,1744189849467,-500.0,0.00019178,2]
[357575403,1744189849476,-500.0,0.00019178,2]
[357575404,1744189849485,-500.0,0.00019178,2]
[357575405,1744189849495,-500.0,0.00019178,2]
[357575406,1744189849504,-500.0,0.00019178,2]
[357575407,1744189849513,-500.0,0.00019178,2]
[357575408,1744189849523,-524.07516778,0.00019178,2]
[357575409,1744189849532,-500.0,0.00019178,2]
[357575410,1744189849541,-500.0,0.00019178,2]
[357575411,1744189849551,-500.0,0.00019178,2]
[357575412,1744189849560,-500.0,0.00019178,2]
[357575413,1744189849569,-500.0,0.00019178,2]
[357575414,1744189849578,-595.15800006,0.00019178,2]
[357575415,1744189849587,-500.0,0.00019178,2]
[357575416,1744189849596,-1435.39,0.00019178,2]
[357575417,1744189849606,-500.0,0.00019178,2]
[357575418,1744189849615,-500.0,0.00019178,2]
[357575419,1744189849624,-500.0,0.00019178,2]
[357575420,1744189849633,-1821.29,0.00019178,2]
[357575421,1744189849642,-500.0,0.00019178,2]
[357575422,1744189849651,-1835.53,0.00019178,2]
[357575423,1744189849660,-303.26560423,0.00019178,2]
[357575424,1744189849669,-151.0,0.000192,2]
[357575425,1744189849678,-10000.0,0.00019257,2]
[357575426,1744189849686,-153.149588,0.00019257,2]
[357575427,1744189849695,-310.167438,0.00019257,2]
[357575428,1744189849705,-310.167438,0.00019257,2]
[357575429,1744189849716,-151.0,0.00019257,2]
[357575430,1744189849726,-151.0,0.00019257,2]
[357575431,1744189849736,-151.0,0.000193,2]
[357575432,1744189849745,-151.0,0.000193,2]
[357575433,1744189849755,-151.0,0.000193,2]
[357575434,1744189849764,-367.3399578,0.00019315,2]
[357575435,1744189849774,-219.96191988,0.00019329,2]
[357575436,1744189849783,-151.0,0.00019329,2]
[357575437,1744189849795,-228.743207,0.00019329,2]
[357575438,1744189849806,-151.0,0.00019329,2]
[357575439,1744189849816,-237.46882895,0.00019329,2]
[357575440,1744189849825,-511.506184,0.00019329,2]
[357575441,1744189849834,-511.506184,0.00019329,2]
[357575442,1744189849843,-25442.82341758,0.00019329,2]
[357575443,1744189849853,-176.70601755,0.00019352,2]
[357575444,1744189849862,-528.13741227,0.00019452,2]
[357575445,1744189849870,-289.61399654,0.00019452,2]
[357575446,1744189849879,-500.0,0.00019452,2]
[357575447,1744189849889,-500.0,0.00019452,2]
[357575448,1744189849898,-500.0,0.00019452,2]
[357575449,1744189849907,-500.0,0.00019452,2]
[357575450,1744189849917,-464.29577751,0.00019452,2]
[357575451,1744189849926,-511.48029874,0.00019452,2]
[357575452,1744189849935,-500.0,0.00019452,2]
[357575453,1744189849945,-500.0,0.00019452,2]
[357575454,1744189849954,-500.0,0.00019452,2]
[357575455,1744189849963,-500.0,0.00019452,2]
[357575456,1744189849972,-201.61123958,0.00019452,2]
[357575457,1744189849981,-500.0,0.00019452,2]
[357575458,1744189849991,-500.0,0.00019452,2]
[357575459,1744189850001,-500.0,0.00019452,2]
[357575460,1744189850010,-500.0,0.00019452,2]
[357575461,1744189850019,-500.0,0.00019452,2]
[357575462,1744189850029,-500.0,0.00019452,2]
[357575463,1744189850039,-500.0,0.00019452,2]
[357575464,1744189850048,-500.0,0.00019452,2]
[357575465,1744189850058,-500.0,0.00019452,2]
[357575466,1744189850067,-500.0,0.00019452,2]
[357575467,1744189850076,-256.04996904,0.00019452,2]
[357575468,1744189850086,-500.0,0.00019452,2]
[357575469,1744189850096,-500.0,0.00019452,2]
[357575470,1744189850105,-501.98185778,0.00019452,2]
[357575471,1744189850115,-500.0,0.00019452,2]
[357575472,1744189850124,-500.0,0.00019452,2]
[357575473,1744189850133,-500.0,0.00019452,2]
[357575474,1744189850143,-417.28896149,0.00019452,2]
[357575475,1744189850152,-500.0,0.00019452,2]
[357575476,1744189850161,-500.0,0.00019452,2]
[357575477,1744189850170,-500.0,0.00019452,2]
[357575478,1744189850180,-500.0,0.00019452,2]
[357575479,1744189850189,-512.56618848,0.00019452,2]
[357575480,1744189850198,-500.0,0.00019452,2]
[357575481,1744189850207,-500.0,0.00019452,2]
[357575482,1744189850217,-500.0,0.00019452,2]
[357575483,1744189850226,-2084.08,0.00019452,2]
[357575484,1744189850236,-500.0,0.00019452,2]
[357575485,1744189850245,-286.74805004,0.00019452,2]
[357575486,1744189850255,-500.0,0.00019452,2]
[357575487,1744189850265,-500.0,0.00019452,2]
[357575488,1744189850274,-500.0,0.00019452,2]
[357575489,1744189850284,-500.0,0.00019452,2]
[357575490,1744189850293,-500.0,0.00019452,2]
[357575491,1744189850303,-500.0,0.00019452,2]
[357575492,1744189850313,-500.0,0.00019452,2]
[357575493,1744189850322,-500.0,0.00019452,2]
[357575494,1744189850331,-500.0,0.00019452,2]
[357575495,1744189850340,-310.167438,0.00019452,2]
[357575496,1744189850350,-310.167438,0.00019452,2]
[357575497,1744189850359,-310.167438,0.00019452,2]
[357575498,1744189850369,-310.167438,0.00019452,2]
[357575499,1744189850379,-500.0,0.00019452,2]
[357575500,1744189850388,-310.167438,0.00019452,2]
[357575501,1744189850397,-310.167438,0.00019452,2]
[357575502,1744189850407,-310.167438,0.00019452,2]
[357575503,1744189850416,-310.167438,0.00019452,2]
[357575504,1744189850426,-500.0,0.00019452,2]
[357575505,1744189850436,-500.0,0.00019452,2]
[357575506,1744189850448,-500.0,0.00019452,2]
[357575507,1744189850458,-500.0,0.00019452,2]
[357575508,1744189850467,-500.0,0.00019452,2]
[357575509,1744189850477,-500.0,0.00019452,2]
[357575510,1744189850487,-500.0,0.00019452,2]
[357575511,1744189850496,-500.0,0.00019452,2]
[357575512,1744189850506,-500.0,0.00019452,2]
[357575513,1744189850515,-500.0,0.00019452,2]
[357575514,1744189850525,-500.0,0.00019452,2]
[357575515,1744189850535,-513.22129983,0.00019452,2]
[357575516,1744189850545,-500.0,0.00019452,2]
[357575517,1744189850556,-500.0,0.00019452,2]
[357575518,1744189850566,-500.0,0.00019452,2]
[357575519,1744189850575,-572.71,0.00019452,2]
[357575520,1744189850585,-500.0,0.00019452,2]
[357575521,1744189850597,-500.0,0.00019452,2]
[357575522,1744189850607,-500.0,0.00019452,2]
[357575523,1744189850617,-500.0,0.00019452,2]
[357575524,1744189850626,-500.0,0.00019452,2]
[357575525,1744189850636,-1136.35,0.00019452,2]
[357575526,1744189850645,-500.0,0.00019452,2]
[357575527,1744189850654,-500.0,0.00019452,2]
[357575528,1744189850664,-500.0,0.00019452,2]
[357575529,1744189850674,-517.15,0.00019452,2]
[357575530,1744189850683,-500.0,0.00019452,2]
[357575531,1744189850693,-530.56495996,0.00019452,2]
[357575532,1744189850702,-500.0,0.00019452,2]
[357575533,1744189850713,-500.0,0.00019452,2]
[357575534,1744189850725,-500.0,0.00019452,2]
[357575535,1744189850734,-940.23,0.00019452,2]
[357575536,1744189850744,-500.0,0.00019452,2]
[357575537,1744189850753,-500.0,0.00019452,2]
[357575538,1744189850763,-836.02,0.00019452,2]
[357575539,1744189850773,-545.06,0.00019452,2]
[357575540,1744189850782,-500.0,0.00019452,2]
[357575541,1744189850792,-500.0,0.00019452,2]
[357575542,1744189850805,-500.0,0.00019452,2]
[357575543,1744189850816,-500.0,0.00019452,2]
[357575544,1744189850825,-500.0,0.00019452,2]
[357575545,1744189850836,-500.0,0.00019452,2]
[357575546,1744189850846,-515.96282539,0.00019452,2]
[357575547,1744189850855,-500.0,0.00019452,2]
[357575548,1744189850864,-649.44,0.00019452,2]
[357575549,1744189850874,-500.0,0.00019452,2]
[357575550,1744189850883,-500.0,0.00019452,2]
[357575551,1744189850893,-810.92,0.00019452,2]
[357575552,1744189850903,-500.0,0.00019452,2]
[357575553,1744189850913,-500.0,0.00019452,2]
[357575554,1744189850924,-500.0,0.00019452,2]
[357575555,1744189850934,-901.05,0.00019452,2]
[357575556,1744189850943,-500.0,0.00019452,2]
[357575557,1744189850953,-500.0,0.00019452,2]
[357575558,1744189850962,-151.0,0.00019452,2]
[357575559,1744189850972,-151.0,0.00019452,2]
[357575560,1744189850982,-151.0,0.00019452,2]
[357575561,1744189850991,-151.0,0.00019452,2]
[357575562,1744189851000,-151.0,0.00019452,2]
[357575563,1744189851010,-151.0,0.00019452,2]
[357575564,1744189851019,-157.046071,0.00019452,2]
[357575565,1744189851028,-525.66425209,0.00019452,2]
[357575566,1744189851039,-1075.82,0.00019452,2]
[357575567,1744189851049,-540.85732286,0.00019452,2]
[357575568,1744189851058,-953.3,0.00019452,2]
[357575569,1744189851067,-510.72495772,0.00019452,2]
[357575570,1744189851077,-500.0,0.00019452,2]
[357575571,1744189851087,-760.35,0.00019452,2]
[357575572,1744189851096,-500.0,0.00019452,2]
[357575573,1744189851106,-178.744636,0.00019452,2]
[357575574,1744189851115,-500.0,0.00019452,2]
[357575575,1744189851125,-500.0,0.00019452,2]
[357575576,1744189851134,-500.0,0.00019452,2]
[357575577,1744189851144,-500.0,0.00019452,2]
[357575578,1744189851157,-500.0,0.00019452,2]
[357575579,1744189851167,-500.0,0.00019452,2]
[357575580,1744189851177,-500.0,0.00019452,2]
[357575581,1744189851187,-500.0,0.00019452,2]
[357575582,1744189851290,-500.0,0.00019452,2]
[357575583,1744189851302,-915.32,0.00019452,2]
[357575584,1744189851312,-500.0,0.00019452,2]
[357575585,1744189851322,-500.0,0.00019452,2]
[357575586,1744189851331,-500.0,0.00019452,2]
[357575587,1744189851342,-500.0,0.00019452,2]
[357575588,1744189851353,-500.0,0.00019452,2]
[357575589,1744189851362,-568.30967004,0.00019452,2]
[357575590,1744189851372,-500.0,0.00019452,2]
[357575591,1744189851382,-500.0,0.00019452,2]
[357575592,1744189851391,-500.0,0.00019452,2]
[357575593,1744189851401,-500.0,0.00019452,2]
[357575594,1744189851410,-911.09,0.00019452,2]
[357575595,1744189851420,-500.0,0.00019452,2]
[357575596,1744189851429,-1656.0,0.00019452,2]
[357575597,1744189851439,-500.0,0.00019452,2]
[357575598,1744189851448,-500.0,0.00019452,2]
[357575599,1744189851457,-916.11,0.00019452,2]
[357575600,1744189851467,-500.0,0.00019452,2]
[357575601,1744189851476,-500.0,0.00019452,2]
[357575602,1744189851485,-500.0,0.00019452,2]
[357575603,1744189851495,-500.0,0.00019452,2]
[357575604,1744189851504,-500.0,0.00019452,2]
[357575605,1744189851514,-500.0,0.00019452,2]
[357575606,1744189851524,-3567.92,0.00019452,2]
[357575607,1744189851533,-500.0,0.00019452,2]
[357575608,1744189851542,-500.0,0.00019452,2]
[357575609,1744189851551,-500.0,0.00019452,2]
[357575610,1744189851560,-1308.57,0.00019452,2]
[357575611,1744189851569,-500.0,0.00019452,2]
[357575612,1744189851578,-500.0,0.00019452,2]
[357575613,1744189851588,-911.87,0.00019452,2]
[357575614,1744189851597,-500.0,0.00019452,2]
[357575615,1744189851606,-500.0,0.00019452,2]
[357575616,1744189851616,-500.0,0.00019452,2]
[357575617,1744189851625,-500.0,0.00019452,2]
[357575618,1744189851634,-500.0,0.00019452,2]
[357575619,1744189851643,-500.0,0.00019452,2]
[357575620,1744189851652,-500.0,0.00019452,2]
[357575621,1744189851662,-500.0,0.00019452,2]
[357575622,1744189851671,-500.0,0.00019452,2]
[357575623,1744189851680,-500.0,0.00019452,2]
[357575624,1744189851690,-500.0,0.00019452,2]
[357575625,1744189851699,-500.0,0.00019452,2]
[357575626,1744189851708,-500.0,0.00019452,2]
[357575627,1744189851722,-500.0,0.00019452,2]
[357575628,1744189851734,-500.0,0.00019452,2]
[357575629,1744189851745,-500.0,0.00019452,2]
[357575630,1744189851755,-500.0,0.00019452,2]
[357575631,1744189851767,-500.0,0.00019452,2]
[357575632,1744189851777,-2393.79,0.00019452,2]
[357575633,1744189851786,-1396.26,0.00019452,2]
[357575634,1744189851795,-500.0,0.00019452,2]
[357575635,1744189851806,-500.0,0.00019452,2]
[357575636,1744189851816,-656.12,0.00019452,2]
[357575637,1744189851825,-500.0,0.00019452,2]
[357575638,1744189851834,-500.0,0.00019452,2]
[357575639,1744189851845,-2387.78,0.00019452,2]
[357575640,1744189851856,-500.0,0.00019452,2]
[357575641,1744189851867,-500.0,0.00019452,2]
[357575642,1744189851877,-892.89,0.00019452,2]
[357575643,1744189851886,-500.0,0.00019452,2]
[357575644,1744189851896,-500.0,0.00019452,2]
[357575645,1744189851905,-500.0,0.00019452,2]
[357575646,1744189851914,-983.05,0.00019452,2]
[357575647,1744189851925,-500.0,0.00019452,2]